Cogmind - Beta 13 @@@ ROGUE MODE // 2024.05.09 @ 23:45:08 Player: naththebg Result: Destroyed by L-31 Rogue with Katana Performance ------------- Evolutions (1) 500 Regions Visited (3) 600 Robots Destroyed (35) 175 Value Destroyed (941) 941 Prototype IDs (3) 60 Alien Tech Used (0) 0 Bonus (130) 130 TOTAL SCORE: 2406 Bonus ------- High Alert Combat Kills 130 Cogmind --------- Core Integrity 0/400 Matter 300/300 Energy 100/100 System Corruption 0% Temperature Cool (0) Movement Treading (160) Location -9/Storage Parts ------- > --- POWER (1) -------- (None) > --- PROPULSION (4) --- Improved Treads Improved Treads Improved Treads > --- UTILITY (2) ------ Small Storage Unit > --- WEAPON (2) ------- (None) > --- INVENTORY (8) ---- Ion Engine Aluminum Leg Heat Sink Weight Redist. System Assault Rifle Assault Rifle Light Cannon Peak State ------------ > --- POWER ------------ Cooled Ion Engine > --- PROPULSION ------- Light Treads Improved Treads Improved Treads Improved Treads > --- UTILITY ---------- Small Storage Unit Light Armor Plating > --- WEAPON ----------- Grenade Launcher Flail > --- INVENTORY -------- Ion Engine Aluminum Leg Heat Sink Weight Redist. System Assault Rifle Assault Rifle Light Cannon Grenade Launcher [Rating: 15] Favorites ----------- Power Cooled Ion Engine Engine Cooled Ion Engine Propulsion Improved Treads Treads Improved Treads Leg Aluminum Leg Wheel Compact Wheel Flight Unit Flight Unit Utility Small Storage Unit Device Heat Sink Storage Small Storage Unit Protection Light Armor Plating Weapon Flail Ballistic Gun Assault Rifle Launcher Grenade Launcher Impact Weapon Flail Build | -11 -10 -9 -9 ------- Run | Yrd Mat Mat Sto Slots Evolved 2 | . . 2 . Power . | . . . . Propulsion 2 | . . 2 . Utility . | . . . . Weapon . | . . . . Parts Attached 28 | 6 4 10 8 Power 5 | 1 1 2 1 Engine 5 | 1 1 2 1 Core . | . . . . Reactor . | . . . . Propulsion 11 | 2 . 5 4 Treads 4 | . . . 4 Leg 1 | . . 1 . Wheel 2 | 2 . . . Hover . | . . . . Flight 4 | . . 4 . Utility 4 | 1 1 1 1 Device 2 | . 1 1 . Storage 1 | 1 . . . Processor . | . . . . Hackware . | . . . . Protection 1 | . . . 1 Artifact . | . . . . Weapon 8 | 2 2 2 2 Energy Gun . | . . . . Energy Cannon . | . . . . Ballistic Gun 2 | 2 . . . Ballistic Cannon . | . . . . Launcher 5 | . 2 1 2 Special Weapon . | . . . . Impact Weapon 1 | . . 1 . Slashing Weapon . | . . . . Piercing Weapon . | . . . . Special Melee Weapon . | . . . . Unidentified Prototypes 1 | . . 1 . Parts Lost 14 | . . 8 6 Power 2 | . . 1 1 Propulsion 5 | . . 4 1 Utility 2 | . . 1 1 Weapon 5 | . . 2 3 Highest Loss Streak 6 | . . 6 5 To Critical Strikes . | . . . . Average Slot Usage (%) 81 | . 95 64 83 Engine 9 | . 14 5 9 Treads 19 | . . . 38 Leg 1 | . . 4 1 Wheel 6 | . 28 . . Flight 4 | . . 16 . Device 7 | . 9 10 4 Storage 11 | . 14 11 11 Ballistic Gun 3 | . 15 . . Launcher 8 | . 12 9 5 Impact Weapon 7 | . . 7 11 Naked Turns . | . . . . Heaviest Build 21 | 14 17 15 21 Greatest Support 89 | 32 32 16 89 Greatest Overweight (x) 3 | . . 3 . Average Overweight (x) . | . . . . Largest Inventory Capacity 8 | 8 8 8 8 Average Capacity 7 | 6 8 8 8 Most Carried 8 | 8 8 8 8 Average Carried 6 | 4 7 4 6 Final Capacity 8 | 8 8 8 8 Final Carried 8 | 6 8 4 7 Class Distribution -------------------- 94% | Mutant 5% | Sprinter Dominant Class ---------------- Mutant | -10/Materials Mutant | -9/Materials Mutant | -9/Storage Resources | -11 -10 -9 -9 ----------- Run | Yrd Mat Mat Sto Matter Collected 607 | 255 28 259 65 Remotely . | . . . . Salvage Created 1026 | . 57 529 440 Parts 49 | . 8 25 16 Haulers Intercepted 3 | . . 2 1 Recyclers Shooed 1 | . . 1 . Parts Field Recycled . | . . . . Retrieved Matter . | . . . . Parts Self-Destructed . | . . . . Prevented . | . . . . Kills | -11 -10 -9 -9 ------- Run | Yrd Mat Mat Sto Combat Hostiles Destroyed 24 | . 2 14 8 Melee 7 | . . 3 4 AOE 10 | . 2 8 . Classes Destroyed 8 | . 2 5 1 Worker 2 | . . 2 . Builder 2 | . . 2 . Hauler 3 | . . 2 1 Mechanic 1 | . . . 1 Watcher 3 | . 2 . 1 Swarmer 4 | . . 4 . Grunt 14 | . 2 7 5 Sentry 6 | . . 3 3 Best Kill Streak 9 | . 2 9 4 Combat Bots Only 8 | . 2 8 4 Max Kills in Single Turn 3 | . 1 3 1 Gunslinging . | . . . . Exploded 2 | . 1 2 . Melee 1 | . . 1 1 Uniques/NPCs Destroyed . | . . . . Combat | -11 -10 -9 -9 -------- Run | Yrd Mat Mat Sto Hostile Shots Fired 172 | . 1 83 88 Missed 47 | . 1 31 15 Damage Taken 1774 | . 18 679 1077 Core 418 | . . 242 176 Absorbed by Shields . | . . . . Regen/Repaired (Parts) 40 | . . 40 . Core Remaining (%) 100 | 100 100 . . Volleys Fired 15 | . 5 9 1 Largest 2 | . 2 2 1 Hottest 60 | . 60 60 30 Shots Fired 21 | . 10 10 1 Gun 4 | . 4 . . Cannon . | . . . . Launcher 17 | . 6 10 1 Special . | . . . . Kinetic 4 | . 4 . . Thermal . | . . . . Explosive 17 | . 6 10 1 Electromagnetic . | . . . . Robot Hit Streak 5 | . 5 2 1 Robot Miss Streak 2 | . 1 2 . Penetration Max . | . . . . Secondary Targets . | . . . . Shots Hit Robots 61 | . 7 21 33 Core Hits 44 | . 9 25 10 Critical Kills 1 | . . 1 . Critical Parts Destroyed 8 | . . 2 6 Critical Strikes 9 | . . 3 6 Smash 9 | . . 3 6 Melee Attacks 66 | . . 21 45 Impact 66 | . . 21 45 Slashing . | . . . . Piercing . | . . . . Sneak Attacks 7 | . . 3 4 Combat Hostiles . | . . . . Follow-up Attacks . | . . . . Damage Inflicted 2930 | . 327 1219 1384 Guns 56 | . 56 . . Cannons . | . . . . Explosions 1011 | . 271 572 168 Melee 1863 | . . 647 1216 Ramming . | . . . . Kinetic 56 | . 56 . . Thermal 50 | . 50 . . Explosive 961 | . 221 572 168 Electromagnetic . | . . . . Impact 1863 | . . 647 1216 Slashing . | . . . . Piercing . | . . . . Highest Corruption . | . . . . Average Corruption . | . . . . Corruption Purged . | . . . . Corruption Blocked . | . . . . Overload Shots . | . . . . Overflow Damage 416 | . . 165 251 Projectiles . | . . . . Explosions 2 | . . 2 . Melee 414 | . . 163 251 Knockbacks 3 | . . 1 2 Impact 3 | . . 1 2 Kinetic . | . . . . Secondary . | . . . . Self-Inflicted Damage 53 | . 18 . 35 Shots 2 | . 1 . 1 Rammed . | . . . . Targets Rammed . | . . . . Kicked . | . . . . Crushed . | . . . . Highest Temperature 20 | . 12 20 7 Average Temperature 7 | . 12 7 4 Received Heat Transfer 717 | . . 300 417 Siege Activations . | . . . . Robots Corrupted . | . . . . Combat Hostiles . | . . . . Parts Fried 14 | . . 7 7 Impact Corruptions 18 | . . 9 9 Robots Melted . | . . . . Combat Hostiles . | . . . . Parts Melted 1 | . . . 1 Heat Transferred 50 | . 50 . . Parts Sabotaged . | . . . . Parts Stolen . | . . . . Parts Stripped . | . . . . Power Chain Reactions . | . . . . Alert | -11 -10 -9 -9 ------- Run | Yrd Mat Mat Sto Peak Influence 629 | . 169 629 604 Initial 265 | . . 70 265 Average 332 | . 84 448 422 Maximum Alert Level 2 | . . 2 2 Low Security (%) 31 | 100 100 17 . Level 1 17 | . . 16 27 Level 2 51 | . . 66 72 Level 3 . | . . . . Level 4 . | . . . . Level 5 . | . . . . High Security . | . . . . Max Security . | . . . . Squads Dispatched 4 | . . 1 3 Investigation 2 | . . 1 1 Extermination . | . . . . Reinforcement 1 | . . . 1 Assault 1 | . . . 1 Garrison . | . . . . Intercept . | . . . . Searches Triggered . | . . . . Construction Impeded . | . . . . Haulers Reinforced . | . . . . Active Scanning Responses . | . . . . Cargo Convoy Interrupts . | . . . . Stealth | -11 -10 -9 -9 --------- Run | Yrd Mat Mat Sto Distress Signals 3 | . . 1 2 Communications Jammed . | . . . . Distress Signals . | . . . . Times Spotted 49 | . 4 26 19 Peak Tracking Total 13 | . 2 13 5 Tactical Retreats 5 | . . 3 2 Traps | -11 -10 -9 -9 ------- Run | Yrd Mat Mat Sto Traps Triggered . | . . . . Indirectly . | . . . . Trap Hack Attempts . | . . . . Triggered . | . . . . Disarmed . | . . . . Reprogrammed . | . . . . Reused . | . . . . Traps Extracted . | . . . . Installed . | . . . . Triggered . | . . . . Machines | -11 -10 -9 -9 ---------- Run | Yrd Mat Mat Sto Machines Disabled 5 | . 2 3 . Max in Single Turn 2 | . 2 2 . Machines Repaired . | . . . . Machines Dismantled . | . . . . Machines Sabotaged . | . . . . Overloaded Fab Kills . | . . . . Hacking | -11 -10 -9 -9 --------- Run | Yrd Mat Mat Sto Machines Accessed 6 | . 2 3 1 Terminals 4 | . 1 2 1 Fabricators . | . . . . Repair Stations 1 | . . 1 . Recycling Units 1 | . 1 . . Scanalyzers . | . . . . Garrison Access . | . . . . Total Hacks 23 | . 6 14 3 Successful 8 | . 4 3 1 Failed 15 | . 2 11 2 Catastrophic 2 | . 1 1 . Database Lockouts . | . . . . Manual 2 | . . . 2 Terminals 16 | . 5 8 3 Fabricators . | . . . . Repair Stations 6 | . . 6 . Recycling Units 1 | . 1 . . Scanalyzers . | . . . . Garrison Access . | . . . . Terminal Hacks 4 | . 3 . 1 Prototype ID Bank 1 | . . . 1 Emergency Access Points 1 | . 1 . . Registered Components 1 | . 1 . . Registered Prototypes 1 | . 1 . . Fabricator Hacks . | . . . . Repair Station Hacks 3 | . . 3 . Scan Component 2 | . . 2 . Repair 1 | . . 1 . Recycling Unit Hacks 1 | . 1 . . Report Inventory 1 | . 1 . . Scanalyzer . | . . . . Garrison Access Hacks . | . . . . Unauthorized Hacks . | . . . . Terminals . | . . . . Fabricators . | . . . . Repair Stations . | . . . . Recycling Units . | . . . . Scanalyzers . | . . . . Garrison Access . | . . . . Data Cores Recovered . | . . . . Used . | . . . . Hacking Detections 4 | . 1 2 1 Full Trace Events 2 | . . 1 1 Feedback Events . | . . . . Feedback Blocked . | . . . . Robot Schematics Acquired . | . . . . Robots Built . | . . . . Authchips . | . . . . Time . | . . . . Total Robot Build Rating . | . . . . Part Schematics Acquired . | . . . . Parts Built . | . . . . Authchips . | . . . . Time . | . . . . Total Part Build Rating . | . . . . Parts Repaired 1 | . . 1 . Time 36 | . . 36 . Parts Recycled . | . . . . Recycled Matter . | . . . . Retrieved Matter . | . . . . Retrieved Components . | . . . . Parts Scanalyzed . | . . . . Part Schematics Acquired . | . . . . Parts Damaged . | . . . . Bothacking | -11 -10 -9 -9 ------------ Run | Yrd Mat Mat Sto Used RIF Installer . | . . . . Robots Hacked . | . . . . Non-combat . | . . . . Combat . | . . . . Robot Hacks Applied . | . . . . Relay Couplers Released . | . . . . Fabnet Peak Effective % . | . . . . Robots Rewired . | . . . . Allies Hacked . | . . . . Hacks Repelled . | . . . . Allies | -11 -10 -9 -9 -------- Run | Yrd Mat Mat Sto Total Allies . | . . . . Largest Group . | . . . . Highest-Rated Group . | . . . . Highest-Rated Ally . | . . . . Total Orders . | . . . . Ally Attacks . | . . . . Total Damage . | . . . . Kills . | . . . . Allies Corrupted . | . . . . Allies Melted . | . . . . Intel | -11 -10 -9 -9 ------- Run | Yrd Mat Mat Sto Robot Analysis Total . | . . . . Derelict Logs Recovered . | . . . . Drone Launches . | . . . . Drone Recoveries . | . . . . Exploration | -11 -10 -9 -9 ------------- Run | Yrd Mat Mat Sto Turns Passed 994 | 58 212 259 465 Spaces Moved 630 | 46 172 206 206 Core 11 | 11 . . . Treads 174 | . . . 174 Legs 98 | . . 66 32 Wheels 207 | 35 172 . . Hover . | . . . . Flight 140 | . . 140 . Fastest Speed 31 | 50 100 31 120 Average Speed 107 | 88 100 72 153 Slowest Speed 280 | 100 100 280 160 Overloaded Moves . | . . . . Propulsion Burnouts . | . . . . Robots Hopped 2 | . . 2 . Cave-ins Triggered . | . . . . Exploration Rate (%) 24 | 5 29 27 35 Regions Visited 3 Branch Regions 1 Pre-discovered Areas . | . . . . Known Exits Taken . | . . . . Unknown Exits Taken 3 | 1 1 1 . Scrap Searched . | . . . . Spaces Dug . | . . . . Terrain Destroyed 78 | . 33 38 7 Melee . | . . . . Projectile . | . . . . AOE 78 | . 33 38 7 Terrain Rammed . | . . . . Walls Destroyed . | . . . . Machines Disabled . | . . . . Actions | -11 -10 -9 -9 --------- Run | Yrd Mat Mat Sto Total 823 | 63 203 273 284 Wait 47 | . 8 23 16 Move 624 | 45 171 202 206 Hop 1 | . . 1 . Pick Up 33 | 12 9 4 8 Fast Attach 1 | . . . 1 Attach 20 | 6 1 8 5 Detach 1 | . . 1 . Swap 7 | . 3 2 2 Drop 8 | . 6 2 . Fire 15 | . 5 9 1 Melee 66 | . . 21 45 Ram . | . . . . Kick . | . . . . Crush . | . . . . Escape Stasis . | . . . . Rewire . | . . . . Trap . | . . . . Miscellaneous . | . . . . Route ------- -11/Scrapyard -10/Materials -9/Materials -9/Storage History --------- Turn | Location | Event 7 | -11/Scrapyard | Discovered new exit (range 15) 59 | -11/Scrapyard | Entered Materials 209 | -10/Materials | Discovered new exit (range 5) 271 | -10/Materials | Entered another Materials area 271 | -9/Materials | Evolved 2 slots: Propulsion x2 286 | -9/Materials | Discovered new exit (range 16) 369 | -9/Materials | Repaired Broken Grenade Launcher 433 | -9/Materials | Destroyed 8 combat bots 473 | -9/Materials | Lost 6 parts (1p3n1u1w) 478 | -9/Materials | Core integrity fell below 50% 530 | -9/Materials | Entered Storage 618 | -9/Storage | Build established: Mutant 930 | -9/Storage | First assault squad dispatched 983 | -9/Storage | Core integrity fell below 20% 995 | -9/Storage | Destroyed by L-31 Rogue with Katana Last Messages --------------- Sneak attack on A-02 Transporter. A-02 Transporter suffers critical hit (Smash). Destroyed Ion Engine. A-02 Transporter system corrupted by crushing effect. A-02 Transporter destroyed. C-30 ARC bursts open, deploying its payload. G-47 Trooper unfolds itself. G-34 Mercenary unfolds itself. L-31 Rogue unfolds itself. G-34 Mercenary unfolds itself. I-25 Savior unfolds itself. Grenade Launcher destroyed. Lgt. Treads destroyed. Grenade Launcher destroyed. U-05 Engineer lays Concrete. Cld. Ion Engine destroyed. L-31 Rogue knocked back. U-05 Engineer lays Concrete. Flail destroyed. Map ----- +----------------------------------------------------+ | ??##+#####+##### #??# #????? | | ???# =!% + #??# """"" #????? | | ####+#####%##### #??# """"" +????? | | # #?#*#???######??# """"" #????? | | # #?# #???????????###########????? | | # !! #?# #??????????????????????????? | | #= % #?# #??????????????????????????? | | # ! #?# #?#####????????????????????? | | # * #?# #?#"""#????????????????????? | | ####+###?# #?#"R"#????????????????????? | | ???# #???# ###" "###??????????????????? | | ???# #???# ## #??????????????????? | | ??## ##?## ##= +??????????????????? | | ??# ### #% #??????????????????? | | ??# T%+% #??????????????????? | | ??# ### %#[ ! #??????????????????? | | ??## ##?##+## #??????????????????? | | ???# #?? ?######+#??????????????????? | | ???# #?T ???????? #??????????????????? | | ???# ## ???##### #########??????????? | | ???# ## ???## = #??????????? | | ???# ########u % [[ #??????????? | | ???# ! [] #??????????? | | ???#### ggg ###+####??????????? | | ??????# li #?????????????? | | ??????# @ #?????????????? | | ??????# ^ #?????????????? | | ??????# ??????????? | | ??????########;##############?????????? | | ????????????? ??????????????????????? | | ????????????? ??????????????????????? | | ????????????? ""??????????????????????? | | ????????????? ""??????????????????????? | | ????????????? ""??????????????????????? | | ????????????? ??????????????????????? | | ????????????Y#????????????????????????? | | ????????????#?????????????????????????? | | ??????????????????????????????????????? | | ??????????????????????????????????????? | | ??????????????????????????????????????? | | ??????????????????????????????????????? | | ??????????????????????????????????????? | | ??????????????????????????????????????? | | ??????????????????????????????????????? | | ??????????????????????????????????????? | | ??????????????????????????????????????? | | ??????????????????????????????????????? | | ??????????????????????????????????????? | | | | | +----------------------------------------------------+ Best States ------------- Heat Dissipation 38 Energy Generation 14 Energy Capacity 280 Matter Stores 300 Matter Capacity 300 Sight Range 16 Robot Scan Range 14 Terrain Scan Density 10 Armor Coverage 150 Evasion (%) 63 Recoil Reduction 4 Item Schematics ----------------- None Robot Schematics ------------------ None Fabricated ------------ Nothing Alien Tech Used ----------------- None Achievements -------------- None Challenges ------------ None Game ------ Seed ImprinterMachineTube Manual? 0 Play Time 00:15:39 Cumulative 40.5 hours Start 2024.05.09 @ 23:31:35 End 2024.05.09 @ 23:45:08 Sessions 1 Manual Loads 0 Difficulty Rogue Special Mode None Game No. 22 Rogue 22 Adventurer 0 Explorer 0 Win Type - Total 0 Types 0/0/0/0/0/0/0/0/0 Lore% 15 Gallery% 38 Achievement% 28 Wizard Run 0 Options --------- Layout 1 ASCII 0 Keyboard 0 Movement Mouse Keybinds 0 Fullscreen 1 Font 24/Smallcaps Map View 50x35 Zoom Use 0% Tactical HUD 0 Map Filters NONE Filters NONE Steam 1 RUN: 0b13538d-6f9a-4111-8a52-a5eaefcfed3d